bitfinex-derivatives/quotes_BTCF0:USTF0_20260221
["timestamp","ask_amount","ask_price","bid_price","bid_amount"]
[1771668238691,0.014657,68244.0,68234.0,0.014659]
[1771668238995,0.014657,68244.0,68237.0,0.029316]
[1771668239190,0.014657,68244.0,68238.0,0.014658]
[1771668240300,0.014657,68245.0,68240.0,0.014658]
[1771668240604,0.014657,68246.0,68241.0,0.014658]
[1771668241398,0.014657,68245.0,68240.0,0.014658]
[1771668241901,0.014656,68249.0,68240.0,0.014658]
[1771668242202,0.014657,68248.0,68243.0,0.014657]
[1771668242895,0.014656,68249.0,68243.0,0.014657]
[1771668243101,0.014657,68247.0,68243.0,0.014657]
[1771668243902,0.014656,68248.0,68243.0,0.014657]
[1771668244501,0.014657,68245.0,68239.0,0.19330826]
[1771668244699,0.25250683,68270.0,68245.0,0.014657]
[1771668244700,0.22472267,68269.0,68245.0,0.014657]
[1771668245000,0.22425055,68265.0,68243.0,0.014657]
[1771668245196,0.014653,68266.0,68243.0,0.014657]
[1771668245197,0.014656,68250.0,68243.0,0.014657]
[1771668245397,0.014656,68250.0,68244.0,0.014657]
[1771668246307,0.014656,68249.0,68244.0,0.014657]
[1771668246491,0.014654,68261.0,68240.0,0.52740107]
[1771668246492,0.17865026,68260.0,68240.0,0.52740107]
[1771668246800,0.014655,68256.0,68250.0,0.19330626]
[1771668247112,0.014655,68255.0,68250.0,0.014656]
[1771668249006,0.014655,68255.0,68249.0,0.014656]
[1771668249201,0.014654,68259.0,68249.0,0.014656]
[1771668249407,0.014654,68258.0,68249.0,0.19330626]
[1771668249705,0.014655,68254.0,68249.0,0.19330626]
[1771668250302,0.014653,68263.0,68248.0,0.3538631]
[1771668250499,0.014654,68261.0,68255.0,0.014655]
[1771668250693,0.014652,68271.0,68257.0,0.014654]
[1771668250892,0.19848584,68270.0,68257.0,0.014654]
[1771668251098,0.014652,68271.0,68260.0,0.17865026]
[1771668251099,0.014653,68262.0,68260.0,0.17865026]
[1771668251301,0.014653,68262.0,68257.0,0.014654]
[1771668252110,0.014654,68261.0,68256.0,0.014655]
[1771668252312,0.24585508,68268.0,68251.0,0.014656]
[1771668252604,0.19853402,68267.0,68253.0,0.014655]
[1771668252810,0.014654,68261.0,68255.0,0.014655]
[1771668253003,0.014653,68264.0,68255.0,0.014655]
[1771668253004,0.014654,68260.0,68255.0,0.014655]
[1771668253404,0.014654,68261.0,68256.0,0.014654]
[1771668253711,0.014654,68260.0,68255.0,0.014655]
[1771668253899,0.014654,68260.0,68251.0,0.015656]
[1771668254104,0.014654,68257.0,68252.0,0.014655]
[1771668255307,0.014654,68258.0,68252.0,0.014655]
[1771668255810,0.014654,68258.0,68251.0,0.014656]
[1771668256406,0.014654,68259.0,68250.0,0.19330626]
[1771668256711,0.014655,68256.0,68250.0,0.19330626]
[1771668256910,0.014655,68255.0,68250.0,0.17865026]
[1771668258008,0.02931,68255.0,68250.0,0.17865026]
[1771668258310,0.014654,68257.0,68250.0,0.19330626]
[1771668258510,0.014654,68257.0,68251.0,0.014656]
[1771668259009,0.24500624,68286.0,68252.0,0.3538631]
[1771668259208,0.014654,68261.0,68260.0,0.17865026]
[1771668259411,0.014654,68261.0,68255.0,0.014655]
[1771668259909,0.014653,68262.0,68256.0,0.014655]
[1771668260407,0.014653,68263.0,68257.0,0.014654]
[1771668261811,0.014653,68263.0,68258.0,0.014654]
[1771668262404,0.014653,68265.0,68258.0,0.014654]
[1771668262708,0.014653,68264.0,68258.0,0.014654]
[1771668263210,0.014653,68263.0,68258.0,0.014654]
[1771668263513,0.014653,68265.0,68259.0,0.014654]
[1771668263907,0.014653,68265.0,68260.0,0.014654]
[1771668266320,0.014653,68264.0,68260.0,0.014654]
[1771668267415,0.014653,68263.0,68258.0,0.014654]
[1771668269918,0.014653,68262.0,68258.0,0.014654]
[1771668270417,0.014653,68262.0,68257.0,0.014654]
[1771668271919,0.014653,68264.0,68256.0,0.014655]
[1771668272416,0.014654,68261.0,68256.0,0.014655]
[1771668272818,0.014653,68262.0,68256.0,0.014655]
[1771668273021,0.029307,68262.0,68256.0,0.014655]
[1771668273320,0.014654,68261.0,68256.0,0.014655]
[1771668273721,0.014652,68266.0,68256.0,0.014655]
[1771668273920,0.25688342,68281.0,68258.0,0.014654]
[1771668274118,0.014653,68264.0,68260.0,0.05727321]
[1771668274320,0.014653,68265.0,68261.0,0.014653]
[1771668274522,0.12018742,68264.0,68261.0,0.014653]
[1771668274717,0.12018742,68264.0,68259.0,0.014654]
[1771668274718,0.014653,68265.0,68260.0,0.014654]
[1771668274918,0.029306,68265.0,68260.0,0.014654]
[1771668276620,0.014653,68264.0,68260.0,0.014654]
[1771668277423,0.014653,68265.0,68260.0,0.029308]
[1771668278325,0.014653,68265.0,68261.0,0.014653]
[1771668278514,0.014653,68266.0,68261.0,0.014653]
[1771668279024,0.014653,68266.0,68260.0,0.014654]
[1771668279326,0.014653,68266.0,68261.0,0.014654]
[1771668281127,0.029306,68266.0,68261.0,0.014654]
[1771668281728,0.014653,68265.0,68261.0,0.014654]
[1771668281931,0.014653,68265.0,68260.0,0.014654]
[1771668282827,0.014653,68266.0,68261.0,0.014654]
[1771668287333,0.014652,68267.0,68261.0,0.014654]
[1771668287631,0.029305,68267.0,68261.0,0.014654]
[1771668288931,0.014652,68267.0,68261.0,0.014654]
[1771668289134,0.029305,68267.0,68261.0,0.014654]
[1771668289532,0.014653,68267.0,68261.0,0.014654]
[1771668290030,0.014652,68268.0,68261.0,0.014654]
[1771668290231,0.029305,68267.0,68261.0,0.014654]
[1771668290531,0.014652,68267.0,68261.0,0.014654]
[1771668290741,0.014652,68267.0,68250.0,0.05727321]
[1771668290920,0.014654,68261.0,68254.0,0.014655]
[1771668291124,0.014654,68260.0,68254.0,0.014655]
[1771668292833,0.014654,68259.0,68253.0,0.014655]
[1771668293230,0.014654,68260.0,68254.0,0.014655]
[1771668294326,0.014654,68261.0,68254.0,0.014655]
[1771668294631,0.029307,68261.0,68254.0,0.014655]
[1771668294934,0.014654,68260.0,68254.0,0.014655]
[1771668295333,0.014654,68260.0,68253.0,0.014655]
[1771668295535,0.014653,68259.0,68253.0,0.014655]
[1771668295839,0.029307,68259.0,68253.0,0.014655]
[1771668296027,0.014653,68259.0,68253.0,0.014655]
[1771668296434,0.014653,68259.0,68254.0,0.014655]
[1771668297636,0.014653,68259.0,68254.0,0.02931]
[1771668298643,0.014653,68259.0,68255.0,0.014655]
[1771668299144,0.014653,68259.0,68254.0,0.014655]
[1771668301940,0.014654,68260.0,68254.0,0.014655]
[1771668302138,0.014653,68259.0,68254.0,0.02931]
[1771668302939,0.014653,68259.0,68255.0,0.014655]
[1771668309647,0.014653,68259.0,68252.0,0.014655]
[1771668310144,0.014653,68259.0,68254.0,0.014655]
[1771668310343,0.014653,68259.0,68254.0,0.02931]
[1771668310545,0.014653,68259.0,68255.0,0.014655]
[1771668317351,0.014654,68261.0,68255.0,0.014655]
[1771668317653,0.014653,68260.0,68255.0,0.014655]
[1771668318950,0.014654,68261.0,68255.0,0.014655]
[1771668319151,0.014653,68260.0,68255.0,0.014655]
[1771668320046,0.014654,68261.0,68255.0,0.014655]
[1771668320253,0.014653,68260.0,68255.0,0.014655]
[1771668325350,0.014654,68261.0,68255.0,0.014655]
[1771668325558,0.014653,68259.0,68255.0,0.014655]
[1771668325855,0.014653,68259.0,68256.0,0.014655]
[1771668326557,0.014653,68259.0,68257.0,0.014654]
[1771668332060,0.014653,68263.0,68257.0,0.014654]
[1771668332061,0.014653,68258.0,68257.0,0.014654]
[1771668332359,0.014653,68262.0,68257.0,0.014654]
[1771668334762,0.014653,68262.0,68259.0,0.014654]
[1771668334954,0.014653,68262.0,68260.0,0.014654]
[1771668335155,0.014653,68262.0,68256.0,0.014655]
[1771668335351,0.014651,68272.0,68266.0,0.014652]
[1771668335557,0.19947455,68271.0,68266.0,0.014652]
[1771668335757,0.19947455,68270.0,68266.0,0.014652]
[1771668335957,0.014651,68272.0,68266.0,0.014652]
[1771668336161,0.74622882,68310.0,68270.0,0.014652]
[1771668336162,0.014648,68285.0,68270.0,0.014652]
[1771668336465,0.014649,68284.0,68278.0,0.01465]
[1771668336659,0.014649,68283.0,68277.0,0.01465]
[1771668336858,0.014649,68282.0,68277.0,0.01465]
[1771668337056,0.014649,68282.0,68276.0,0.01465]
[1771668337057,0.014649,68283.0,68276.0,0.01465]
[1771668337264,0.014649,68281.0,68276.0,0.01465]
[1771668337766,0.014649,68281.0,68272.0,0.014651]
[1771668337959,0.01465,68278.0,68273.0,0.014651]
[1771668338971,0.01465,68279.0,68270.0,0.014652]
[1771668339165,0.014651,68276.0,68271.0,0.014651]
[1771668339363,0.01465,68278.0,68271.0,0.014651]
[1771668339566,0.01465,68278.0,68272.0,0.014651]
[1771668340172,0.01465,68278.0,68271.0,0.014651]
[1771668340665,0.01465,68278.0,68272.0,0.014651]
[1771668341466,0.01465,68278.0,68273.0,0.014651]
[1771668344371,0.01465,68279.0,68271.0,0.014651]
[1771668344973,0.014648,68289.0,68274.0,0.014651]
[1771668345173,0.01465,68279.0,68273.0,0.014651]
[1771668345673,0.01465,68279.0,68274.0,0.014651]
[1771668348275,0.01465,68279.0,68273.0,0.014651]
[1771668352880,0.01465,68279.0,68273.0,0.029302]
[1771668353090,0.01465,68279.0,68273.0,0.014651]
[1771668357182,0.01098108,68279.0,68273.0,0.029302]
[1771668357886,0.01098108,68279.0,68273.0,0.014651]
[1771668358388,0.01098108,68279.0,68274.0,0.014651]
[1771668358783,0.01465,68278.0,68272.0,0.014651]
[1771668358971,0.01465,68277.0,68273.0,0.28502307]
[1771668359175,0.01465,68277.0,68272.0,0.014651]
[1771668359374,0.01465,68277.0,68273.0,0.28434088]
[1771668359578,0.0293,68277.0,68271.0,0.014651]
[1771668359883,0.01465,68277.0,68271.0,0.014651]
[1771668360785,0.01465,68279.0,68271.0,0.014651]
[1771668360786,0.01465,68276.0,68271.0,0.014651]
[1771668360976,0.01465,68277.0,68271.0,0.014651]
[1771668361380,0.01465,68277.0,68270.0,0.014651]
[1771668362079,0.01465,68276.0,68270.0,0.014651]
[1771668363383,0.01465,68277.0,68271.0,0.014651]
[1771668364387,0.01465,68276.0,68270.0,0.014652]
[1771668367376,0.01465,68277.0,68270.0,0.014652]
[1771668368178,0.01465,68276.0,68269.0,0.014652]
[1771668368379,0.01465,68276.0,68270.0,0.014651]
[1771668368983,0.01465,68277.0,68271.0,0.014651]
[1771668373194,0.01465,68279.0,68271.0,0.029302]
[1771668373195,0.01465,68278.0,68271.0,0.029302]
[1771668374594,0.01465,68278.0,68271.0,0.20515008]
[1771668374785,0.01465,68278.0,68271.0,0.19049908]
[1771668375395,0.01465,68278.0,68271.0,0.20515008]
[1771668376396,0.01465,68278.0,68272.0,0.014651]
[1771668381298,0.01465,68278.0,68271.0,0.19049908]
[1771668382206,0.014649,68281.0,68274.0,0.014651]
[1771668382401,0.01465,68280.0,68271.0,0.35455637]
[1771668382596,0.01465,68279.0,68274.0,0.014651]
[1771668382901,0.01465,68279.0,68273.0,0.014651]
[1771668383702,0.01465,68277.0,68272.0,0.014651]
[1771668385704,0.01465,68277.0,68271.0,0.17870829]
[1771668385902,0.01465,68276.0,68269.0,0.014652]
[1771668386105,0.01465,68276.0,68270.0,0.014651]
[1771668387209,0.014651,68275.0,68268.0,0.014652]
[1771668387504,0.014651,68275.0,68267.0,0.07189304]
[1771668387706,0.014651,68275.0,68269.0,0.014652]
[1771668387908,0.014651,68274.0,68267.0,0.014652]
[1771668389605,0.014651,68273.0,68267.0,0.014652]
[1771668389805,0.014651,68273.0,68266.0,0.014652]
[1771668390005,0.014651,68273.0,68267.0,0.014652]
[1771668390207,0.014651,68274.0,68266.0,0.014652]
[1771668390705,0.014651,68273.0,68267.0,0.014652]
[1771668391103,0.014651,68273.0,68266.0,0.014652]
[1771668392509,0.014651,68273.0,68267.0,0.014652]
[1771668394417,0.01465,68276.0,68269.0,0.014652]
[1771668394708,0.014651,68275.0,68269.0,0.014652]
[1771668395399,0.01465,68276.0,68269.0,0.014652]
[1771668396407,0.01465,68276.0,68270.0,0.014652]
[1771668400009,0.01465,68277.0,68271.0,0.014651]
[1771668404619,0.20910383,68276.0,68271.0,0.014651]
[1771668404817,0.01465,68277.0,68271.0,0.014651]
[1771668405017,0.20910366,68276.0,68271.0,0.014651]
[1771668405316,0.01465,68277.0,68271.0,0.014651]
[1771668405516,0.20910366,68276.0,68271.0,0.014651]
[1771668405709,0.01465,68277.0,68271.0,0.014651]
[1771668405910,0.20910366,68276.0,68271.0,0.014651]
[1771668406118,0.01465,68277.0,68271.0,0.014651]
[1771668406320,0.20910443,68276.0,68271.0,0.014651]
[1771668406512,0.01465,68277.0,68271.0,0.014651]
[1771668406712,0.20910446,68276.0,68271.0,0.014651]
[1771668407017,0.01465,68277.0,68271.0,0.014651]
[1771668407412,0.20910261,68276.0,68271.0,0.014651]
[1771668407612,0.01465,68277.0,68271.0,0.014651]
[1771668407912,0.20910278,68276.0,68271.0,0.014651]
[1771668408211,0.01465,68277.0,68271.0,0.014651]
[1771668408520,0.2091058,68276.0,68271.0,0.014651]
[1771668408709,0.01465,68277.0,68271.0,0.014651]
[1771668408911,0.20910626,68276.0,68271.0,0.014651]
[1771668409204,0.01465,68277.0,68271.0,0.014651]
[1771668409407,0.20910662,68276.0,68271.0,0.014651]
[1771668409604,0.01465,68277.0,68271.0,0.014651]
[1771668409820,0.20910629,68276.0,68271.0,0.014651]
[1771668410020,0.01465,68277.0,68271.0,0.014651]
[1771668410222,0.2091058,68276.0,68271.0,0.014651]
[1771668410422,0.01465,68277.0,68271.0,0.014651]
[1771668410623,0.20910859,68276.0,68271.0,0.014651]
[1771668410821,0.24296465,68284.0,68262.0,0.014653]
[1771668411018,0.014652,68269.0,68263.0,0.014653]
[1771668411317,0.014652,68270.0,68263.0,0.014653]
[1771668411520,0.014652,68270.0,68264.0,0.014653]
[1771668415128,0.014651,68271.0,68264.0,0.029306]
[1771668415328,0.014651,68271.0,68265.0,0.014653]
[1771668419834,0.014651,68273.0,68265.0,0.014653]
[1771668420035,0.014651,68273.0,68267.0,0.014652]
[1771668420431,0.014651,68274.0,68267.0,0.014652]
[1771668420831,0.014651,68273.0,68267.0,0.014652]
[1771668421937,0.014651,68274.0,68267.0,0.014652]
[1771668422129,0.014651,68275.0,68269.0,0.014652]
[1771668422328,0.014649,68285.0,68267.0,0.014652]
[1771668422329,0.01465,68278.0,68271.0,0.014651]
[1771668422629,0.21367695,68277.0,68274.0,0.014651]
[1771668422935,0.21367695,68276.0,68274.0,0.014651]
[1771668423134,0.21367695,68275.0,68274.0,0.014651]
[1771668423338,0.014649,68280.0,68274.0,0.014651]
[1771668423528,0.21338032,68279.0,68274.0,0.014651]
[1771668423728,0.21338032,68278.0,68274.0,0.014651]
[1771668423935,0.21338032,68277.0,68274.0,0.014651]
[1771668424239,0.21338032,68276.0,68274.0,0.014651]
[1771668424538,0.21338114,68275.0,68274.0,0.014651]
[1771668425133,0.21338114,68275.0,68273.0,0.014651]
[1771668425433,0.01465,68280.0,68274.0,0.014651]
[1771668425734,0.22801873,68279.0,68274.0,0.014651]
[1771668426033,0.21336873,68278.0,68274.0,0.014651]
[1771668426337,0.21336873,68277.0,68274.0,0.014651]
[1771668426534,0.18406573,68276.0,68269.0,0.029304]
[1771668426741,0.014651,68274.0,68267.0,0.014652]
[1771668426939,0.014651,68273.0,68268.0,0.014652]
[1771668427149,0.014651,68273.0,68266.0,0.014652]
[1771668427641,0.014651,68274.0,68267.0,0.029304]
[1771668428044,0.014651,68273.0,68267.0,0.014652]
[1771668428241,0.014651,68273.0,68267.0,0.029304]
[1771668428440,0.014651,68273.0,68267.0,0.014652]
[1771668429046,0.014651,68273.0,68267.0,0.030144]
[1771668429240,0.014651,68272.0,68267.0,0.014652]
[1771668433245,0.014651,68272.0,68265.0,0.03627832]
[1771668433746,0.014651,68272.0,68266.0,0.014652]
[1771668434137,0.014651,68272.0,68265.0,0.02162532]
[1771668434337,0.014651,68271.0,68265.0,0.02162532]
[1771668435249,0.014651,68271.0,68266.0,0.014652]
[1771668435738,0.014651,68271.0,68265.0,0.02162532]
[1771668436648,0.014651,68271.0,68265.0,0.03627832]
[1771668437747,0.014649,68281.0,68272.0,0.014651]
[1771668437948,0.01465,68280.0,68273.0,0.014651]
[1771668438249,0.014649,68281.0,68273.0,0.014651]
[1771668438449,0.01465,68279.0,68273.0,0.014651]
[1771668438749,0.21258722,68278.0,68273.0,0.014651]
[1771668438937,0.21258722,68277.0,68273.0,0.014651]
[1771668439142,0.01465,68279.0,68273.0,0.014651]
[1771668439343,0.21259787,68278.0,68274.0,0.014651]
[1771668439542,0.01465,68279.0,68274.0,0.014651]
[1771668439754,0.21257744,68278.0,68274.0,0.014651]
[1771668439957,0.01465,68280.0,68274.0,0.014651]
[1771668440149,0.21257757,68279.0,68274.0,0.014651]
[1771668440450,0.21257757,68278.0,68274.0,0.014651]
[1771668440647,0.01465,68280.0,68274.0,0.014651]
[1771668440850,0.21257404,68279.0,68274.0,0.014651]
[1771668441149,0.21257404,68278.0,68274.0,0.014651]
[1771668441351,0.01465,68280.0,68274.0,0.014651]
[1771668441555,0.2125567,68279.0,68274.0,0.014651]
[1771668441848,0.2125567,68278.0,68274.0,0.014651]
[1771668442049,0.01465,68280.0,68274.0,0.014651]
[1771668442252,0.21255676,68279.0,68274.0,0.014651]
[1771668442445,0.21255676,68278.0,68274.0,0.014651]
[1771668442640,0.01465,68280.0,68274.0,0.014651]
[1771668442842,0.2125437,68279.0,68274.0,0.014651]
[1771668443042,0.2125437,68278.0,68274.0,0.014651]
[1771668443348,0.01465,68280.0,68274.0,0.014651]
[1771668443549,0.21253346,68279.0,68274.0,0.014651]
[1771668443743,0.21253346,68278.0,68274.0,0.014651]
[1771668443943,0.01465,68280.0,68274.0,0.014651]
[1771668444144,0.21383167,68279.0,68274.0,0.014651]
[1771668444445,0.01465,68280.0,68274.0,0.014651]
[1771668447150,0.01465,68280.0,68274.0,0.029302]
[1771668447852,0.01465,68280.0,68275.0,0.01465]
[1771668454455,0.01465,68280.0,68274.0,0.014651]
[1771668454456,0.21368788,68279.0,68274.0,0.014651]
[1771668454656,0.21368788,68279.0,68272.0,0.014651]
[1771668454657,0.22833788,68278.0,68273.0,0.014651]
[1771668454858,0.01465,68278.0,68273.0,0.014651]
[1771668455154,0.01465,68280.0,68272.0,0.014651]
[1771668455352,0.22831565,68279.0,68274.0,0.014651]
[1771668455560,0.01465,68280.0,68272.0,0.014651]
[1771668455855,0.21367046,68279.0,68272.0,0.014651]
[1771668456054,0.01465,68280.0,68273.0,0.015451]
[1771668456248,0.21367046,68279.0,68273.0,0.014651]
[1771668456451,0.01465,68279.0,68273.0,0.014651]
[1771668458359,0.0293,68279.0,68273.0,0.014651]
[1771668458554,0.01465,68279.0,68273.0,0.014651]
[1771668460462,0.01465,68279.0,68271.0,0.014651]
[1771668460463,0.01465,68278.0,68272.0,0.014651]
[1771668460967,0.014649,68281.0,68275.0,0.01465]
[1771668461161,0.21368232,68280.0,68275.0,0.01465]
[1771668461356,0.21368232,68279.0,68275.0,0.01465]
[1771668461660,0.014649,68281.0,68275.0,0.01465]
[1771668461860,0.2136923,68280.0,68275.0,0.01465]
[1771668462063,0.2136923,68279.0,68275.0,0.01465]
[1771668462263,0.014649,68281.0,68275.0,0.01465]
[1771668462556,0.21370493,68280.0,68275.0,0.01465]
[1771668462863,0.21370493,68279.0,68275.0,0.01465]
[1771668463058,0.014649,68281.0,68275.0,0.01465]
[1771668463261,0.21370493,68280.0,68275.0,0.01465]
[1771668463461,0.21370493,68279.0,68275.0,0.01465]
[1771668463763,0.014649,68281.0,68275.0,0.01465]
[1771668464059,0.21372086,68280.0,68275.0,0.01465]
[1771668464259,0.21372086,68279.0,68275.0,0.01465]
[1771668464563,0.014649,68281.0,68275.0,0.01465]
[1771668467865,0.014649,68281.0,68276.0,0.01465]
[1771668468162,0.014649,68282.0,68276.0,0.01465]
[1771668471061,0.014649,68282.0,68276.0,0.01549]
[1771668471263,0.014649,68282.0,68276.0,0.01465]
[1771668471763,0.014649,68285.0,68278.0,0.01465]
[1771668471961,0.2285449,68284.0,68278.0,0.01465]
[1771668472160,0.2138959,68283.0,68278.0,0.01465]
[1771668472360,0.014649,68283.0,68278.0,0.01465]
[1771668473655,0.23074707,68282.0,68278.0,0.01465]
[1771668473956,0.014649,68282.0,68278.0,0.01465]
[1771668474563,0.21609897,68281.0,68278.0,0.01465]
[1771668474763,0.014649,68282.0,68277.0,0.01465]
[1771668474957,0.21609904,68281.0,68277.0,0.01465]
[1771668475159,0.014649,68282.0,68277.0,0.01465]
[1771668477367,0.014649,68284.0,68279.0,0.014649]
[1771668477565,0.014649,68283.0,68279.0,0.014649]
[1771668477769,0.01465,68280.0,68267.0,0.014652]
[1771668478069,0.014651,68275.0,68270.0,0.19323627]
[1771668478371,0.014651,68274.0,68269.0,0.014652]
[1771668478666,0.014651,68275.0,68270.0,0.014652]
[1771668479067,0.014651,68275.0,68269.0,0.014652]
[1771668479268,0.014651,68274.0,68269.0,0.014652]
[1771668479464,0.014651,68275.0,68269.0,0.014652]
[1771668480171,0.029302,68275.0,68269.0,0.014652]
[1771668480359,0.014651,68274.0,68269.0,0.014652]
[1771668480561,0.014651,68274.0,68268.0,0.014652]
[1771668480876,0.014652,68270.0,68265.0,0.014653]
[1771668481170,0.014651,68272.0,68263.0,0.01502319]
[1771668481370,0.014652,68267.0,68263.0,0.01502319]
[1771668481855,0.014653,68266.0,68261.0,0.00933194]
[1771668482061,0.014653,68265.0,68259.0,0.00896041]
[1771668482767,0.014653,68265.0,68257.0,0.02575309]
[1771668482768,0.014653,68263.0,68257.0,0.02575309]
[1771668483065,0.014653,68264.0,68255.0,0.02613791]
[1771668483260,0.014653,68265.0,68258.0,0.014654]
[1771668483470,0.014653,68264.0,68258.0,0.014654]
[1771668483863,0.014653,68264.0,68259.0,0.014654]
[1771668484371,0.029306,68264.0,68253.0,0.02661161]
[1771668484561,0.029306,68264.0,68253.0,0.00503223]
[1771668484758,0.014653,68264.0,68258.0,0.014654]
[1771668485166,0.014653,68264.0,68258.0,0.029308]
[1771668485371,0.014653,68264.0,68259.0,0.014654]
[1771668487268,0.014653,68264.0,68257.0,0.014654]
[1771668488372,0.014653,68262.0,68257.0,0.014654]
[1771668488577,0.014653,68262.0,68254.0,0.19324027]
[1771668488766,0.014653,68262.0,68255.0,0.014655]
[1771668489072,0.014653,68262.0,68256.0,0.015494]
[1771668489269,0.014654,68261.0,68256.0,0.014654]
[1771668489768,0.014654,68261.0,68253.0,0.01968723]
[1771668489975,0.014654,68261.0,68254.0,0.014655]
[1771668491075,0.014654,68261.0,68254.0,0.02931]
[1771668491374,0.014654,68261.0,68255.0,0.014655]
[1771668491968,0.014653,68262.0,68255.0,0.014655]
[1771668492376,0.014653,68262.0,68256.0,0.014655]
[1771668492767,0.014653,68263.0,68256.0,0.02931]
[1771668492974,0.014653,68263.0,68257.0,0.014654]
[1771668493176,0.014653,68262.0,68256.0,0.014655]
[1771668495275,0.014653,68263.0,68256.0,0.014655]
[1771668495975,0.014653,68263.0,68257.0,0.014654]
[1771668496280,0.014653,68264.0,68258.0,0.014654]
[1771668496482,0.014652,68266.0,68258.0,0.014654]
[1771668497378,0.014652,68267.0,68259.0,0.014654]
[1771668497578,0.014653,68265.0,68259.0,0.014654]
[1771668499684,0.014653,68266.0,68260.0,0.014654]
[1771668502189,0.014652,68268.0,68261.0,0.014653]
[1771668502395,0.014652,68268.0,68262.0,0.014653]
[1771668503390,0.014652,68267.0,68262.0,0.014653]
[1771668503888,0.014652,68268.0,68262.0,0.014653]
[1771668504583,0.014652,68268.0,68263.0,0.014653]
[1771668506394,0.21780904,68267.0,68263.0,0.014653]
[1771668506593,0.014652,68268.0,68263.0,0.014653]
[1771668506787,0.21780904,68267.0,68263.0,0.014653]
[1771668506985,0.014652,68268.0,68263.0,0.014653]
[1771668507182,0.21780904,68267.0,68261.0,0.029306]
[1771668507388,0.2179222,68266.0,68261.0,0.029306]
[1771668507587,0.014652,68268.0,68261.0,0.014653]
[1771668507790,0.2179222,68267.0,68261.0,0.014653]
[1771668507986,0.2179222,68266.0,68261.0,0.014653]
[1771668508187,0.014652,68268.0,68261.0,0.014653]
[1771668508387,0.23258135,68267.0,68261.0,0.014653]
[1771668508691,0.21792935,68266.0,68261.0,0.014653]
[1771668513398,0.21792935,68266.0,68262.0,0.014653]
[1771668513597,0.21792935,68265.0,68262.0,0.014653]
[1771668513795,0.21792935,68264.0,68258.0,0.07191259]
[1771668513995,0.21792935,68263.0,68261.0,0.014653]
[1771668514196,0.029304,68268.0,68261.0,0.014653]
[1771668514498,0.21824864,68267.0,68261.0,0.014653]
[1771668514700,0.014652,68268.0,68262.0,0.014653]
[1771668514902,0.21824864,68267.0,68262.0,0.014653]
[1771668515095,0.014652,68268.0,68262.0,0.014653]
[1771668515296,0.21824867,68267.0,68262.0,0.014653]
[1771668515492,0.014652,68268.0,68262.0,0.014653]
[1771668515700,0.2182495,68267.0,68262.0,0.014653]
[1771668515902,0.014652,68268.0,68262.0,0.014653]
[1771668516101,0.2182495,68267.0,68262.0,0.014653]
[1771668516296,0.014652,68268.0,68262.0,0.014653]
[1771668516496,0.21824956,68267.0,68262.0,0.014653]
[1771668516696,0.014652,68268.0,68262.0,0.014653]
[1771668516896,0.21824956,68267.0,68262.0,0.014653]
[1771668517097,0.014652,68268.0,68262.0,0.014653]
[1771668517296,0.2182493,68267.0,68262.0,0.014653]
[1771668517497,0.014652,68268.0,68262.0,0.014653]
[1771668517700,0.21824967,68267.0,68262.0,0.014653]
[1771668517898,0.014652,68268.0,68262.0,0.014653]
[1771668518098,0.2182498,68267.0,68262.0,0.014653]
[1771668518395,0.014652,68268.0,68262.0,0.014653]
[1771668518594,0.21825032,68267.0,68262.0,0.014653]
[1771668518799,0.014652,68268.0,68262.0,0.014653]
[1771668518999,0.21825045,68267.0,68262.0,0.014653]
[1771668519199,0.014652,68267.0,68261.0,0.014653]
[1771668519401,0.23290373,68266.0,68260.0,0.014654]
[1771668519596,0.014652,68266.0,68260.0,0.014654]
[1771668519802,0.014652,68266.0,68259.0,0.014654]
[1771668520096,0.014653,68265.0,68259.0,0.014654]
[1771668521405,0.014652,68266.0,68259.0,0.014654]
[1771668521609,0.014652,68266.0,68259.0,0.029308]
[1771668521808,0.014652,68266.0,68260.0,0.014654]
[1771668526307,0.029305,68266.0,68259.0,0.014654]
[1771668526513,0.014656,68250.0,68249.0,0.01504385]
[1771668526697,0.014655,68253.0,68246.0,0.03090701]
[1771668527207,0.014655,68253.0,68247.0,0.014657]
[1771668527810,0.014655,68254.0,68247.0,0.014657]
[1771668529813,0.014655,68254.0,68248.0,0.014656]
[1771668530709,0.014655,68254.0,68247.0,0.014656]
[1771668531408,0.014655,68253.0,68247.0,0.014656]
[1771668531911,0.014655,68253.0,68246.0,0.03090701]
[1771668532113,0.014656,68252.0,68246.0,0.01625001]
[1771668532713,0.014656,68250.0,68246.0,0.01625001]
[1771668534712,0.014656,68251.0,68246.0,0.01625001]
[1771668535410,0.18651858,68259.0,68246.0,0.01625001]
[1771668535615,0.014656,68248.0,68244.0,0.0171723]
[1771668535816,0.014656,68248.0,68243.0,0.03636071]
[1771668536012,0.014656,68248.0,68242.0,0.01928699]
[1771668536315,0.014657,68246.0,68242.0,0.01928699]
[1771668536916,0.014656,68248.0,68242.0,0.01928699]
[1771668536917,0.014657,68248.0,68242.0,0.01928699]
[1771668537107,0.014657,68246.0,68242.0,0.01928699]
[1771668539517,0.014657,68245.0,68242.0,0.01928699]
[1771668540615,0.014657,68246.0,68242.0,0.01928699]
[1771668541514,0.014657,68245.0,68242.0,0.01928699]
[1771668542213,0.014657,68246.0,68242.0,0.01928699]
[1771668542617,0.014657,68244.0,68239.0,0.02328924]
[1771668542819,0.014657,68243.0,68239.0,0.00863124]
[1771668543114,0.014658,68241.0,68239.0,0.00863124]
[1771668543714,0.014657,68243.0,68238.0,0.04394032]
[1771668543715,0.014658,68240.0,68238.0,0.04394032]
[1771668546021,0.014658,68241.0,68238.0,0.04394032]